fUST/lending_fUST_20240325
["ID","MTS","AMOUNT","RATE_DAILY","PERIOD"]
[320338941,1711312237771,-500.0,0.00054794,120]
[320338942,1711312237780,-500.0,0.00054794,120]
[320338943,1711312237789,-500.0,0.00054794,120]
[320338945,1711312237798,-500.0,0.00054794,120]
[320338947,1711312237808,-500.37354689,0.00054794,120]
[320338949,1711312237817,-500.0,0.00054794,120]
[320338951,1711312237826,-500.0,0.00054794,120]
[320338952,1711312237835,-500.0,0.00054794,120]
[320338953,1711312237845,-627.12549703,0.00054794,120]
[320338955,1711312237855,-166.34391731,0.00054794,120]
[320338956,1711312237864,-500.0,0.00054794,120]
[320338957,1711312237873,-977.52,0.00054794,120]
[320338958,1711312237882,-977.52,0.00054794,120]
[320338959,1711312237891,-977.52,0.00054794,120]
[320338960,1711312237900,-977.52,0.00054794,120]
[320338961,1711312237909,-977.52,0.00054794,120]
[320338963,1711312237920,-977.52,0.00054794,120]
[320338965,1711312237928,-977.52,0.00054794,120]
[320338967,1711312237937,-977.52,0.00054794,120]
[320338968,1711312237946,-977.52,0.00054794,120]
[320338969,1711312237955,-977.52,0.00054794,120]
[320338970,1711312237964,-977.52,0.00054794,120]
[320338972,1711312237973,-977.52,0.00054794,120]
[320338973,1711312237983,-977.52,0.00054794,120]
[320338975,1711312237991,-977.52,0.00054794,120]
[320338976,1711312238000,-977.52,0.00054794,120]
[320338977,1711312238009,-977.52,0.00054794,120]
[320338978,1711312238018,-977.52,0.00054794,120]
[320338979,1711312238027,-977.52,0.00054794,120]
[320338981,1711312238036,-977.52,0.00054794,120]
[320338982,1711312238045,-977.52,0.00054794,120]
[320338984,1711312238054,-977.52,0.00054794,120]
[320338985,1711312238063,-977.52,0.00054794,120]
[320338986,1711312238073,-977.52,0.00054794,120]
[320338987,1711312238082,-977.69740897,0.00054794,120]
[320338988,1711312238091,-500.0,0.00054794,120]
[320338990,1711312238170,-500.0,0.00054794,120]
[320338991,1711312238180,-500.0,0.00054794,120]
[320338992,1711312238189,-500.0,0.00054794,120]
[320338993,1711312238198,-500.0,0.00054794,120]
[320338994,1711312238207,-500.0,0.00054794,120]
[320338995,1711312238217,-500.0,0.00054794,120]
[320338996,1711312238226,-500.0,0.00054794,120]
[320338997,1711312238235,-500.0,0.00054794,120]
[320338998,1711312238244,-500.0,0.00054794,120]
[320338999,1711312238253,-500.0,0.00054794,60]
[320339000,1711312238262,-500.0,0.00054794,120]
[320339001,1711312238271,-500.0,0.00054794,120]
[320339002,1711312238280,-2147.61,0.00054794,120]
[320339003,1711312238288,-500.0,0.00054794,120]
[320339004,1711312238297,-500.0,0.00054794,120]
[320339005,1711312238306,-500.0,0.00054794,120]
[320339006,1711312238315,-500.0,0.00054794,120]
[320339008,1711312238324,-803.28,0.00054794,120]
[320339009,1711312238334,-500.0,0.00054794,120]
[320339010,1711312238344,-500.0,0.00054794,120]
[320339011,1711312238354,-2006.85,0.00054794,120]
[320339012,1711312238362,-500.0,0.00054794,60]
[320339013,1711312238372,-500.0,0.00054794,120]
[320339014,1711312238381,-500.0,0.00054794,120]
[320339015,1711312238390,-309.85910611,0.00054794,120]
[320339016,1711312238399,-500.0,0.00054794,120]
[320339017,1711312238408,-500.0,0.00054794,120]
[320339018,1711312238418,-500.0,0.00054794,120]
[320339019,1711312238427,-500.0,0.00054794,120]
[320339020,1711312238437,-500.0,0.00054794,120]
[320339021,1711312238446,-14627.16,0.00054794,120]
[320339022,1711312238455,-500.0,0.00054794,120]
[320339023,1711312238464,-500.0,0.00054794,120]
[320339024,1711312238474,-500.0,0.00054794,120]
[320339025,1711312238483,-500.0,0.00054794,120]
[320339026,1711312238492,-277.21657967,0.00054794,120]
[320339027,1711312238501,-500.0,0.00054794,120]
[320339028,1711312238511,-500.0,0.00054794,120]
[320339029,1711312238522,-500.0,0.00054794,120]
[320339030,1711312238532,-500.0,0.00054794,120]
[320339031,1711312238541,-500.0,0.00054794,120]
[320339032,1711312238550,-7364.45,0.00054794,120]
[320339033,1711312238560,-500.0,0.00054794,120]
[320339034,1711312238569,-500.0,0.00054794,120]
[320339035,1711312238578,-500.0,0.00054794,120]
[320339036,1711312238587,-500.0,0.00054794,120]
[320339037,1711312238596,-500.0,0.00054794,120]
[320339038,1711312238606,-503.0735052,0.00054794,120]
[320339039,1711312238614,-500.0,0.00054794,120]
[320339040,1711312238624,-4050.34,0.00054794,2]
[320339041,1711312238633,-500.0,0.00054794,120]
[320339042,1711312238642,-1903.49,0.00054794,120]
[320339043,1711312238650,-500.0,0.00054794,120]
[320339044,1711312238660,-500.0,0.00054794,120]
[320339045,1711312238668,-500.0,0.00054794,120]
[320339046,1711312238677,-500.0,0.00054794,120]
[320339047,1711312238686,-626.97051343,0.00054794,120]
[320339048,1711312238695,-500.0,0.00054794,120]
[320339049,1711312238704,-596.99,0.00054794,120]
[320339050,1711312238713,-2069.8,0.00054794,120]
[320339051,1711312238723,-10528.98,0.00054794,120]
[320339052,1711312238732,-500.0,0.00054794,120]
[320339053,1711312238741,-500.5775585,0.00054794,2]
[320339054,1711312238750,-500.0,0.00054794,120]
[320339055,1711312238759,-500.0,0.00054794,120]
[320339056,1711312238768,-500.0,0.00054794,120]
[320339057,1711312238777,-500.0,0.00054794,120]
[320339058,1711312238786,-500.0,0.00054794,120]
[320339059,1711312238795,-500.0,0.00054794,120]
[320339060,1711312238805,-634.39,0.00054794,120]
[320339061,1711312238814,-500.0,0.00054794,120]
[320339062,1711312238823,-500.0,0.00054794,120]
[320339063,1711312238833,-1403.64,0.00054794,120]
[320339064,1711312238842,-2970.68,0.00054794,120]
[320339065,1711312238851,-500.0,0.00054794,120]
[320339066,1711312238860,-19513.21,0.00054794,120]
[320339067,1711312238870,-500.0,0.00054794,120]
[320339068,1711312238878,-571.10922504,0.00054794,120]
[320339069,1711312238887,-500.0,0.00054794,120]
[320339070,1711312238896,-500.0,0.00054794,120]
[320339071,1711312238906,-500.0,0.00054794,120]
[320339072,1711312238915,-3494.72,0.00054794,120]
[320339073,1711312238924,-500.0,0.00054794,120]
[320339074,1711312238933,-4114.18,0.00054794,120]
[320339075,1711312238942,-500.0,0.00054794,120]
[320339076,1711312238951,-500.0,0.00054794,120]
[320339077,1711312238960,-500.0,0.00054794,120]
[320339078,1711312238970,-500.0,0.00054794,120]
[320339079,1711312238979,-19738.89,0.00054794,120]
[320339080,1711312238987,-4406.86,0.00054794,120]
[320339081,1711312238996,-500.0,0.00054794,120]
[320339082,1711312239005,-2423.47,0.00054794,120]
[320339083,1711312239015,-165.05721308,0.00054794,120]
[320339084,1711312239024,-500.0,0.00054794,120]
[320339085,1711312239034,-500.0,0.00054794,120]
[320339086,1711312239043,-500.0,0.00054794,120]
[320339087,1711312239051,-500.0,0.00054794,120]
[320339088,1711312239060,-500.0,0.00054794,120]
[320339089,1711312239069,-548.47,0.00054794,120]
[320339090,1711312239078,-500.0,0.00054794,120]
[320339091,1711312239087,-500.0,0.00054794,120]
[320339092,1711312239098,-500.0,0.00054794,120]
[320339093,1711312239107,-171.91326712,0.00054794,120]
[320339094,1711312239116,-500.0,0.00054794,120]
[320339095,1711312239125,-500.0,0.00054794,2]
[320339096,1711312239135,-500.0,0.00054794,120]
[320339097,1711312239144,-1600.91,0.00054794,120]
[320339098,1711312239153,-500.0,0.00054794,120]
[320339099,1711312239162,-501.85256439,0.00054794,120]
[320339100,1711312239170,-368.83574321,0.00054794,120]
[320339101,1711312239180,-500.0,0.00054794,120]
[320339102,1711312239189,-427.49478328,0.00054794,120]
[320339103,1711312239198,-500.0,0.00054794,120]
[320339104,1711312239208,-4626.22,0.00054794,120]
[320339105,1711312239217,-887.43,0.00054794,120]
[320339106,1711312239226,-500.0,0.00054794,120]
[320339107,1711312239235,-11961.11,0.00054794,120]
[320339108,1711312239244,-2001.27,0.00054794,120]
[320339109,1711312239254,-1962.34,0.00054794,120]
[320339110,1711312239263,-500.0,0.00054794,120]
[320339111,1711312239273,-500.0,0.00054794,120]
[320339112,1711312239282,-500.0,0.00054794,120]
[320339113,1711312239291,-500.0,0.00054794,120]
[320339114,1711312239300,-500.0,0.00054794,120]
[320339115,1711312239309,-500.0,0.00054794,120]
[320339116,1711312239318,-978.35,0.00054794,120]
[320339117,1711312239327,-500.0,0.00054794,120]
[320339118,1711312239337,-500.0,0.00054794,120]
[320339119,1711312239348,-2079.22,0.00054794,120]
[320339120,1711312239358,-500.0,0.00054794,120]
[320339121,1711312239367,-23638.83,0.00054794,90]
[320339122,1711312239376,-1339.16,0.00054794,120]
[320339123,1711312239385,-500.0,0.00054794,120]
[320339124,1711312239394,-327.14480371,0.00054794,120]
[320339129,1711312239652,-172.85519629,0.00054794,120]
[320339131,1711312239662,-500.0,0.00054794,120]
[320339132,1711312239671,-500.0,0.00054794,120]
[320339133,1711312239680,-594.2940873,0.00054794,120]
[320339134,1711312239689,-3535.66,0.00054794,120]
[320339135,1711312239699,-500.0,0.00054794,120]
[320339136,1711312239708,-500.0,0.00054794,120]
[320339137,1711312239718,-1414.51,0.00054794,21]
[320339139,1711312239727,-500.0,0.00054794,120]
[320339141,1711312239737,-530.0,0.00054794,120]
[320339142,1711312239747,-500.0,0.00054794,120]
[320339144,1711312239756,-500.0,0.00054794,120]
[320339146,1711312239765,-500.0,0.00054794,120]
[320339148,1711312239775,-500.0,0.00054794,120]
[320339150,1711312239785,-1754.77,0.00054794,120]
[320339152,1711312239795,-500.0,0.00054794,120]
[320339154,1711312239805,-500.0,0.00054794,120]
[320339157,1711312239815,-500.62140895,0.00054794,120]
[320339160,1711312239824,-843.81,0.00054794,120]
[320339163,1711312239835,-2594.49,0.00054794,120]
[320339165,1711312239854,-500.0,0.00054794,120]
[320339167,1711312239863,-500.0,0.00054794,120]
[320339169,1711312239873,-500.0,0.00054794,120]
[320339171,1711312239882,-500.0,0.00054794,120]
[320339173,1711312239892,-1828.02,0.00054794,120]
[320339175,1711312239901,-500.0,0.00054794,120]
[320339177,1711312239910,-500.0,0.00054794,120]
[320339179,1711312239919,-893.61,0.00054794,120]
[320339181,1711312239930,-4557.38,0.00054794,120]
[320339183,1711312239939,-500.0,0.00054794,120]
[320339184,1711312239948,-129.75456999,0.00054794,120]
[320339187,1711312239961,-1129.46543001,0.00054794,120]
[320339189,1711312239971,-500.0,0.00054794,120]
[320339191,1711312239980,-500.0,0.00054794,120]
[320339193,1711312239989,-3076.78900058,0.00055,60]
[320339195,1711312239998,-3494.72,0.00055342,120]
[320339197,1711312240007,-3494.72,0.0005589,120]
[320339198,1711312240017,-3494.72,0.00056438,120]
[320339201,1711312240027,-800.88155346,0.00056886,120]
[320339202,1711312240036,-800.88155346,0.00056886,120]
[320339204,1711312240046,-800.88155346,0.00056886,120]
[320339206,1711312240055,-800.88155346,0.00056886,120]
[320339208,1711312240064,-800.88155346,0.00056886,120]
[320339210,1711312240073,-800.88155346,0.00056886,120]
[320339212,1711312240083,-800.88155346,0.00056886,120]
[320339214,1711312240092,-800.88155346,0.00056886,120]
[320339216,1711312240102,-800.88155346,0.00056886,120]
[320339218,1711312240111,-800.88155346,0.00056886,120]
[320339220,1711312240121,-800.88155346,0.00056886,120]
[320339222,1711312240130,-800.88155346,0.00056886,120]
[320339224,1711312240139,-800.88155346,0.00056886,120]
[320339226,1711312240148,-800.88155346,0.00056886,120]
[320339228,1711312240157,-800.88155346,0.00056886,120]
[320339230,1711312240166,-800.88155346,0.00056886,120]
[320339232,1711312240175,-800.88155346,0.00056886,120]
[320339234,1711312240184,-3494.72,0.00056986,120]
[320339236,1711312240193,-556.47496816,0.00057434,120]
[320339238,1711312240202,-556.47496816,0.00057434,120]
[320339240,1711312240213,-556.47496816,0.00057434,120]
[320339242,1711312240222,-556.47496816,0.00057434,120]
[320339244,1711312240231,-507.58770444,0.00057434,120]
[320339246,1711312240244,-48.88726372,0.00057434,120]
[320339248,1711312240253,-556.47496816,0.00057434,120]
[320339250,1711312240262,-556.47496816,0.00057434,120]
[320339252,1711312240271,-120.01761336,0.00057434,120]
[320339256,1711312240302,-389.05906483,0.00026627,2]
[320339258,1711312240311,-869.86249345,0.00027397,2]
[320339260,1711312240321,-869.86249345,0.00027397,2]
[320339262,1711312240330,-436.4573548,0.00057434,120]
[320339264,1711312240339,-556.47496816,0.00057434,120]
[320339266,1711312240349,-556.47496816,0.00057434,120]
[320339268,1711312240358,-556.47496816,0.00057434,120]
[320339270,1711312240367,-556.47496816,0.00057434,120]
[320339272,1711312240376,-556.47496816,0.00057434,120]
[320339274,1711312240386,-556.47496816,0.00057434,120]
[320339276,1711312240395,-556.47496816,0.00057434,120]
[320339278,1711312240404,-556.47496816,0.00057434,120]
[320339280,1711312240414,-556.47496816,0.00057434,120]
[320339282,1711312240424,-556.47496816,0.00057434,120]
[320339284,1711312240434,-556.47496816,0.00057434,120]
[320339286,1711312240445,-556.97,0.00057434,120]
[320339288,1711312240454,-214.05385297,0.00057434,120]
[320339290,1711312240463,-214.05385297,0.00057434,120]
[320339292,1711312240473,-214.05385297,0.00057434,120]
[320339294,1711312240482,-214.05385297,0.00057434,120]
[320339296,1711312240491,-214.05385297,0.00057434,120]
[320339298,1711312240500,-214.05385297,0.00057434,120]
[320339300,1711312240509,-214.05385297,0.00057434,120]
[320339302,1711312240518,-214.05385297,0.00057434,120]
[320339303,1711312240527,-214.05385297,0.00057434,120]
[320339305,1711312240538,-214.05385297,0.00057434,120]
[320339307,1711312240547,-214.05385297,0.00057434,120]
[320339309,1711312240556,-214.05385297,0.00057434,120]
[320339311,1711312240565,-214.05385297,0.00057434,120]
[320339313,1711312240574,-214.05385297,0.00057434,120]
[320339315,1711312240583,-214.05385297,0.00057434,120]
[320339317,1711312240592,-214.05385297,0.00057434,120]
[320339319,1711312240601,-214.05385297,0.00057434,120]
[320339320,1711312240610,-214.05385297,0.00057434,120]
[320339322,1711312240619,-214.05385297,0.00057434,120]
[320339324,1711312240629,-214.55,0.00057434,120]
[320339327,1711312240638,-500.0,0.00057534,120]
[320339328,1711312240648,-500.0,0.00057534,120]
[320339330,1711312240657,-500.0,0.00057534,120]
[320339332,1711312240666,-500.0,0.00057534,120]
[320339334,1711312240675,-500.0,0.00057534,120]
[320339336,1711312240684,-500.0,0.00057534,120]
[320339338,1711312240695,-500.0,0.00057534,120]
[320339340,1711312240705,-500.0,0.00057534,120]
[320339342,1711312240714,-501.33515441,0.00057534,120]
[320339344,1711312240723,-500.0,0.00057534,120]
[320339346,1711312240732,-500.0,0.00057534,120]
[320339348,1711312240743,-500.0,0.00057534,120]
[320339350,1711312240753,-500.0,0.00057534,120]
[320339352,1711312240762,-500.0,0.00057534,120]
[320339354,1711312240771,-500.0,0.00057534,120]
[320339356,1711312240780,-500.0,0.00057534,120]
[320339358,1711312240789,-500.0,0.00057534,120]
[320339360,1711312240799,-500.0,0.00057534,120]
[320339362,1711312240808,-500.0,0.00057534,120]
[320339364,1711312240817,-500.0,0.00057534,120]
[320339366,1711312240827,-869.26,0.00057534,120]
[320339368,1711312240836,-560.60682279,0.00057534,120]
[320339370,1711312240847,-500.0,0.00057534,120]
[320339372,1711312240857,-500.0,0.00057534,120]
[320339374,1711312240866,-500.0,0.00057534,120]
[320339376,1711312240876,-500.0,0.00057534,120]
[320339378,1711312240886,-500.0,0.00057534,120]
[320339380,1711312240895,-500.0,0.00057534,120]
[320339382,1711312240905,-501.60684069,0.00057534,120]
[320339384,1711312240915,-500.0,0.00057534,120]
[320339393,1711312240994,-500.0,0.00057534,30]
[320339395,1711312241004,-501.86706236,0.00057534,120]
[320339396,1711312241013,-500.0,0.00057534,120]
[320339397,1711312241022,-500.0,0.00057534,120]
[320339398,1711312241032,-500.0,0.00057534,120]
[320339399,1711312241041,-194.46850166,0.00057534,120]
[320339401,1711312241050,-500.0,0.00057534,120]
[320339403,1711312241059,-500.0,0.00057534,120]
[320339405,1711312241068,-500.0,0.00057534,120]
[320339406,1711312241077,-500.0,0.00057534,120]
[320339408,1711312241086,-689.49,0.00057534,120]
[320339410,1711312241095,-227.61660107,0.00057534,120]
[320339512,1711312241960,-869.86249345,0.00027397,2]
[320339514,1711312241970,-438.13751655,0.00027397,2]
[320339516,1711312241982,-431.7249769,0.00027397,2]
[320339518,1711312241992,-869.86249345,0.00027397,2]
[320339520,1711312242002,-869.86249345,0.00027397,2]
[320339522,1711312242014,-869.86249345,0.00027397,2]
[320339524,1711312242024,-869.86249345,0.00027397,2]
[320339526,1711312242034,-151.0,0.00027397,2]
[320339528,1711312242043,-869.86249345,0.00027397,2]
[320339530,1711312242053,-869.86249345,0.00027397,2]
[320339532,1711312242062,-869.86249345,0.00027397,2]
[320339534,1711312242071,-805.93034692,0.00027397,2]
[320339570,1711312242463,-63.93214653,0.00027397,2]
[320339573,1711312242473,-295.56885351,0.00027397,2]
[320339575,1711312242486,-574.29363994,0.00027397,2]
[320339577,1711312242495,-869.86249345,0.00027397,2]
[320339579,1711312242505,-762.25983791,0.00027397,2]
[320339715,1711312244803,-107.60265554,0.00027397,2]
[320339719,1711312244880,-151.0,0.00027397,2]
[320339720,1711312244891,-733.96234446,0.00027397,2]
[320339721,1711312244903,-135.90014899,0.00027397,2]
[320339722,1711312244911,-220.93985094,0.00027397,2]
[320339749,1711312246299,-648.92264251,0.00027397,2]
[320339751,1711312246308,-27.06139827,0.00027397,2]
[320339753,1711312467272,500.0,0.00026815,120]
[320339766,1711313082259,-154.93802479,0.00024398,2]
[320339767,1711313082290,-205.23034575,0.00024399,2]
[320339768,1711313082316,-275.66095293,0.000244,2]
[320339769,1711313082337,-445.17067653,0.000244,2]
[320339770,1711313306414,233.292142,0.00024996,14]
[320339771,1711313306642,233.292142,0.00024996,20]
[320339772,1711313306850,233.292142,0.00024996,26]
[320339773,1711313307070,233.292142,0.00024996,33]
[320339774,1711313307321,233.292142,0.00024996,39]
[320339775,1711313307532,233.292142,0.00024996,45]
[320339776,1711313307751,233.292142,0.00024996,51]
[320339777,1711313307972,233.292142,0.00024996,57]
[320339778,1711313308219,180.0,0.00024996,64]
[320339779,1711313308252,53.292142,0.00024996,64]
[320339780,1711313308402,233.292142,0.00024996,70]
[320339781,1711313308615,233.292142,0.00024996,76]
[320339782,1711313308852,233.292142,0.00024996,82]
[320339783,1711313309066,233.292142,0.00024996,88]
[320339784,1711313309271,233.292142,0.00024996,95]
[320339785,1711313309484,233.292142,0.00024996,101]
[320339786,1711313309680,233.292142,0.00024996,107]
[320339787,1711313309882,233.292142,0.00024996,113]
[320339788,1711313310090,233.292142,0.00024996,120]
[320339835,1711313432367,-281.08411472,0.00024397,2]
[320339836,1711313432377,-617.58899448,0.00024398,2]
[320339837,1711313432386,-166.666666,0.00024401,2]
[320339838,1711313432398,-150.0,0.00024715,2]
[320339839,1711313432407,-300.0,0.00024824,2]
[320339840,1711313432416,-24880.0,0.00024825,2]
[320339841,1711313432425,-837.99305396,0.000249,2]
[320339842,1711313432434,-233.292142,0.00024996,2]
[320339843,1711313432444,-233.292142,0.00024996,8]
[320339844,1711313432454,-154.9690062,0.00025,2]
[320339845,1711313432463,-166.666666,0.00025067,2]
[320339846,1711313432472,-178.47835122,0.00025632,2]
[320339847,1711313432481,-166.666666,0.00025732,2]
[320339848,1711313432490,-166.666666,0.00026397,2]
[320339849,1711313432499,-309.86056352,0.00026847,2]
[320339850,1711313432508,-1619.429426,0.00027,2]
[320339852,1711313432517,-166.666666,0.00027062,2]
[320339854,1711313432526,-779.49019222,0.00027395,2]
[320339856,1711313432535,-815.66428976,0.00027395,2]
[320339858,1711313432544,-281.46635872,0.00027395,2]
[320339860,1711313432552,-270.56324793,0.00027395,2]
[320339862,1711313432561,-291.04503375,0.00027395,2]
[320339864,1711313432569,-238.39719634,0.00027395,2]
[320339866,1711313432579,-309.86057281,0.00027395,2]
[320339868,1711313432588,-612.00058741,0.00027395,2]
[320339870,1711313432597,-192.27786436,0.00027395,2]
[320339872,1711313432606,-309.8295945,0.00027395,2]
[320339874,1711313432615,-683.03052035,0.00027395,2]
[320339876,1711313432624,-251.32188023,0.00027395,2]
[320339878,1711313432633,-1073.9320552,0.00027395,2]
[320339880,1711313432646,-863.54495364,0.00027395,2]
[320339882,1711313432655,-204.83959297,0.00027395,2]
[320339884,1711313432664,-193.51235725,0.00027395,2]
[320339886,1711313432673,-191.94768734,0.00027395,2]
[320339888,1711313432682,-5079.88695154,0.00027395,2]
[320339890,1711313432691,-732.29672417,0.00027395,2]
[320339892,1711313432701,-325.91287519,0.00027395,2]
[320339894,1711313432710,-641.97635516,0.00027395,2]
[320339896,1711313432719,-205.23034575,0.00027395,2]
[320339898,1711313432728,-274.79192667,0.00027395,2]
[320339900,1711313432739,-215.94348858,0.00027395,2]
[320339902,1711313432748,-309.86340899,0.00027396,2]
[320339904,1711313432757,-162.42735772,0.00027396,2]
[320339906,1711313432766,-954.39823141,0.00027396,2]
[320339908,1711313432776,-535.87708587,0.00027397,2]
[320339910,1711313432789,-535.87708587,0.00027397,2]
[320339912,1711313432798,-535.87708587,0.00027397,2]
[320339914,1711313432807,-535.87708587,0.00027397,2]
[320339916,1711313432815,-535.87708587,0.00027397,2]
[320339918,1711313432825,-535.87708587,0.00027397,2]
[320339920,1711313432833,-535.87708587,0.00027397,2]
[320339922,1711313432842,-535.87708587,0.00027397,2]
[320339924,1711313432851,-535.87708587,0.00027397,2]
[320339926,1711313432860,-535.87708587,0.00027397,2]
[320339928,1711313432870,-535.87708587,0.00027397,2]
[320339930,1711313432878,-535.87708587,0.00027397,2]
[320339932,1711313432887,-535.87708587,0.00027397,2]
[320339934,1711313432897,-535.87708587,0.00027397,2]
[320339936,1711313432906,-535.87708587,0.00027397,2]
[320339938,1711313432915,-535.87708587,0.00027397,2]
[320339940,1711313432928,-535.87708587,0.00027397,2]
[320339942,1711313432937,-535.87708587,0.00027397,2]
[320339944,1711313432947,-535.87708587,0.00027397,2]
[320339946,1711313432956,-535.87708587,0.00027397,2]
[320339948,1711313432964,-535.87708587,0.00027397,2]
[320339950,1711313432973,-535.87708587,0.00027397,2]
[320339952,1711313432982,-535.87708587,0.00027397,2]
[320339954,1711313432990,-535.87708587,0.00027397,2]
[320339956,1711313432999,-535.87708587,0.00027397,2]
[320339958,1711313433008,-535.87708587,0.00027397,2]
[320339960,1711313433016,-535.87708587,0.00027397,2]
[320339962,1711313433026,-535.87708587,0.00027397,2]
[320339964,1711313433035,-535.87708587,0.00027397,2]
[320339966,1711313433044,-535.87708587,0.00027397,2]
[320339977,1711313433132,-535.87708587,0.00027397,2]
[320339979,1711313433144,-535.87708587,0.00027397,2]
[320339981,1711313433153,-535.87708587,0.00027397,2]
[320339983,1711313433161,-535.87708587,0.00027397,2]
[320339985,1711313433170,-535.87708587,0.00027397,2]
[320339987,1711313433179,-535.87708587,0.00027397,2]
[320339988,1711313433188,-535.87708587,0.00027397,2]
[320339990,1711313433197,-535.87708587,0.00027397,2]
[320339992,1711313433206,-535.87708587,0.00027397,2]
[320339994,1711313433215,-141.51937375,0.00027397,2]
[320339996,1711313433242,-394.35771212,0.00027397,2]
[320339998,1711313433251,-535.87708587,0.00027397,2]
[320339999,1711313433261,-535.87708587,0.00027397,2]
[320340000,1711313433270,-535.87708587,0.00027397,2]
[320340001,1711313433279,-535.87708587,0.00027397,2]
[320340003,1711313433289,-535.87708587,0.00027397,2]
[320340005,1711313433298,-535.87708587,0.00027397,2]
[320340007,1711313433307,-535.87708587,0.00027397,2]
[320340008,1711313433316,-535.87708587,0.00027397,2]
[320340009,1711313433326,-535.87708587,0.00027397,2]
[320340010,1711313433335,-535.87708587,0.00027397,2]
[320340011,1711313433344,-535.87708587,0.00027397,2]
[320340012,1711313433353,-535.87708587,0.00027397,2]
[320340013,1711313433363,-535.87708587,0.00027397,2]
[320340014,1711313433372,-535.87708587,0.00027397,2]
[320340015,1711313433381,-524.84432233,0.00027397,2]
[320340016,1711313433391,-524.84432233,0.00027397,2]
[320340017,1711313433401,-524.84432233,0.00027397,2]
[320340018,1711313433410,-524.84432233,0.00027397,2]
[320340019,1711313433419,-524.84432233,0.00027397,2]
[320340020,1711313433429,-524.84432233,0.00027397,2]
[320340021,1711313433438,-524.84432233,0.00027397,2]
[320340022,1711313433448,-524.84432233,0.00027397,2]
[320340023,1711313433457,-524.84432233,0.00027397,2]
[320340024,1711313433467,-524.84432233,0.00027397,2]
[320340025,1711313433476,-524.84432233,0.00027397,2]
[320340026,1711313433485,-524.84432233,0.00027397,2]
[320340027,1711313433495,-524.84432233,0.00027397,2]
[320340028,1711313433504,-524.84432233,0.00027397,2]
[320340029,1711313433513,-524.84432233,0.00027397,2]
[320340030,1711313433522,-524.84432233,0.00027397,2]
[320340031,1711313433532,-524.84432233,0.00027397,2]
[320340032,1711313433541,-524.84432233,0.00027397,2]
[320340033,1711313433550,-524.84432233,0.00027397,2]
[320340034,1711313433559,-524.84432233,0.00027397,2]
[320340035,1711313433568,-524.84432233,0.00027397,2]
[320340036,1711313433577,-524.84432233,0.00027397,2]
[320340037,1711313433586,-524.84432233,0.00027397,2]
[320340038,1711313433596,-524.84432233,0.00027397,2]
[320340039,1711313433606,-16.47326606,0.00027397,2]
[320340472,1711313447495,-508.37105627,0.00027397,2]
[320340474,1711313447504,-524.84432233,0.00027397,2]
[320340476,1711313447513,-524.84432233,0.00027397,2]
[320340478,1711313447522,-524.84432233,0.00027397,2]
[320340480,1711313447532,-524.84432233,0.00027397,2]
[320340481,1711313447542,-524.84432233,0.00027397,2]
[320340483,1711313447551,-524.84432233,0.00027397,2]
[320340486,1711313447561,-524.84432233,0.00027397,2]
[320340487,1711313447570,-524.84432233,0.00027397,2]
[320340488,1711313447579,-524.8443225,0.00027397,2]
[320340489,1711313447588,-166.666666,0.00027728,2]
[320340490,1711313447597,-1683.0,0.00028814,2]
[320340491,1711313447605,-397.32110842,0.00028814,2]
[320340492,1711313447614,-286.00900493,0.00028814,2]
[320340493,1711313447623,-1025.61284307,0.00028814,2]